Cogmind - Beta 16.1 @@@ ROGUE MODE // 2026.02.11 @ 17:33:58 Player: SunShine214 Result: Destroyed by as-74267 with Assembled Blade Performance ------------- Evolutions (0) 0 Regions Visited (4) 800 Robots Destroyed (11) 55 Value Destroyed (175) 175 Prototype IDs (23) 460 Alien Tech Used (0) 0 Bonus (300) 300 TOTAL SCORE: 1790 Bonus ------- Aligned with FarCom 300 Cogmind --------- Core Integrity 0/250 Matter 295/300 Energy 95/100 System Corruption 0% Temperature Cool (35) Movement Core (200) Ox3 Location -9/Mines Parts ------- > --- POWER (1) -------- (None) > --- PROPULSION (2) --- (None) > --- UTILITY (2) ------ Small Storage Unit Hardened Light Armor Plating > --- WEAPON (2) ------- Medium Laser > --- INVENTORY (8) ---- Flight Unit Flight Unit Hacking Suite Bomb Drone Bay Grenade Launcher Field Lobotomy Kit (4) Peak State ------------ > --- POWER ------------ Light Ion Engine > --- PROPULSION ------- Light Treads Light Treads > --- UTILITY ---------- Small Storage Unit > --- WEAPON ----------- Light Assault Rifle Field Lobotomy Kit > --- INVENTORY -------- Flight Unit Flight Unit Hacking Suite Bomb Drone Bay Grenade Launcher Hammer [Rating: 17] Favorites ----------- Power Light Ion Engine Engine Light Ion Engine Propulsion Light Treads Treads Light Treads Utility Small Storage Unit Device Improved Terrain Scanner Storage Small Storage Unit Protection Hardened Light Armor Plating Weapon Light Assault Rifle Energy Gun EM Pulse Gun Ballistic Gun Light Assault Rifle Special Weapon Field Lobotomy Kit Impact Weapon Hammer Build | -11 -10 -10 -10 -9 ------- Run | Yrd Mat Min Exi Min Slots Evolved . | . . . . . Power . | . . . . . Propulsion . | . . . . . Utility . | . . . . . Weapon . | . . . . . Parts Attached 12 | 8 . . . 4 Power 1 | 1 . . . . Engine 1 | 1 . . . . Core . | . . . . . Reactor . | . . . . . Propulsion 2 | 2 . . . . Treads 2 | 2 . . . . Leg . | . . . . . Wheel . | . . . . . Hover . | . . . . . Flight . | . . . . . Utility 3 | 2 . . . 1 Device 1 | 1 . . . . Storage 1 | 1 . . . . Processor . | . . . . . Hackware . | . . . . . Protection 1 | . . . . 1 Artifact . | . . . . . Weapon 6 | 3 . . . 3 Energy Gun 3 | 2 . . . 1 Energy Cannon . | . . . . . Ballistic Gun 1 | 1 . . . . Ballistic Cannon . | . . . . . Launcher . | . . . . . Special Weapon 1 | . . . . 1 Impact Weapon 1 | . . . . 1 Slashing Weapon . | . . . . . Piercing Weapon . | . . . . . Special Melee Weapon . | . . . . . Unidentified Prototypes . | . . . . . Parts Lost 6 | . . . . 6 Power 1 | . . . . 1 Propulsion 2 | . . . . 2 Utility . | . . . . . Weapon 3 | . . . . 3 Highest Loss Streak 5 | . . . . 5 To Critical Strikes . | . . . . . Average Backups 5 | . 3 6 7 6 Power . | . . . . . Propulsion 1 | . . 2 2 2 Utility 1 | . . 1 2 2 Weapon 1 | . 2 2 2 1 Tool/Special . | . . . . . Unused Backups 8 | . . 2 1 5 Power . | . . . . . Propulsion 2 | . . . . 2 Utility 3 | . . 1 . 2 Weapon 3 | . . 1 1 1 Tool/Special . | . . . . . Average Slot Usage (%) 85 | . 100 93 85 59 Engine 12 | . 14 14 14 5 Treads 24 | . 28 28 28 10 Device 5 | . 14 7 . . Storage 14 | . 14 14 14 14 Protection 1 | . . . . 5 Energy Gun 12 | . 14 14 14 8 Ballistic Gun 12 | . 14 14 14 5 Impact Weapon 2 | . . . . 9 Peak Build Rating 17 | 9 9 9 9 17 Average Rating 8 | 6 9 8 8 7 On Entrance 7 | . 9 9 8 9 Avg Prop Armor Cover (%) . | . . . . . Naked Turns . | . . . . . Heaviest Build 14 | 12 12 12 11 14 Greatest Support 40 | 40 40 40 40 40 Greatest Overweight (x) 4 | . . . . 4 Average Overweight (x) . | . . . . 1 Largest Inventory Capacity 8 | 8 8 8 8 8 Average Capacity 7 | 7 8 8 8 8 Most Carried 8 | 1 6 8 8 8 Average Carried 5 | . 3 7 7 7 Final Capacity 8 | 8 8 8 8 8 Final Carried 8 | 1 6 8 8 7 Class Distribution -------------------- 100% | Mutant Dominant Class ---------------- Mutant | -10/Materials Mutant | -10/Mines Mutant | -10/Exiles Mutant | -9/Mines Resources | -11 -10 -10 -10 -9 ----------- Run | Yrd Mat Min Exi Min Matter Collected 323 | 223 89 . . 11 Remotely . | . . . . . Salvage Created 323 | 121 185 . . 17 Parts 24 | 10 14 . . . Haulers Intercepted . | . . . . . Recyclers Shooed 2 | 1 1 . . . Parts Field Recycled . | . . . . . Retrieved Matter . | . . . . . Parts Self-Destructed . | . . . . . Prevented . | . . . . . Parts Restored . | . . . . . Kills | -11 -10 -10 -10 -9 ------- Run | Yrd Mat Min Exi Min Combat Hostiles Destroyed 7 | . 6 . . 1 Melee 1 | . . . . 1 Guns 6 | . 6 . . . Classes Destroyed 6 | 2 3 . . 1 Tunneler 3 | 3 . . . . Recycler 1 | 1 . . . . Operator 1 | . 1 . . . Swarmer 3 | . 3 . . . Grunt 3 | . 3 . . . Assembled 1 | . . . . 1 Best Kill Streak 4 | 4 3 . . 1 Combat Bots Only 3 | . 3 . . 1 Max Kills in Single Turn 1 | 1 1 . . 1 Gunslinging . | . . . . . Exploded . | . . . . . Melee 1 | . . . . 1 Uniques/NPCs Destroyed . | . . . . . Combat | -11 -10 -10 -10 -9 -------- Run | Yrd Mat Min Exi Min Hostile Shots Fired 47 | . 26 . . 21 Missed 9 | . 7 . . 2 Hits 38 | . 19 . . 19 Melee 5 | . . . . 5 Projectile 33 | . 19 . . 14 AOE 14 | . . . . 14 Damage Taken 912 | . 181 . . 731 Core 262 | . 25 . . 237 Absorbed by Shields . | . . . . . Core Remaining (%) 100 | 100 . . . . Volleys Fired 38 | 9 23 . . 6 Largest 2 | 2 2 . . 2 Hottest 60 | 60 60 . . 60 Shots Fired 72 | 18 46 . . 8 Gun 71 | 18 46 . . 7 Cannon . | . . . . . Launcher . | . . . . . Special 1 | . . . . 1 Kinetic 34 | 9 23 . . 2 Thermal 4 | . . . . 4 Explosive . | . . . . . Electromagnetic 33 | 9 23 . . 1 Robot Hit Streak 8 | 5 8 . . 3 Robot Miss Streak 5 | 1 5 . . 2 Penetration Max . | . . . . . Secondary Targets 1 | . 1 . . . Max Gunslinging Chain 1 | . 1 . . . Shots Hit Robots 42 | 11 24 . . 7 Core Hits 17 | 6 11 . . . Critical Kills . | . . . . . Critical Parts Destroyed 1 | . . . . 1 Critical Strikes 1 | . . . . 1 Smash 1 | . . . . 1 Melee Attacks 2 | . . . . 2 Impact 2 | . . . . 2 Slashing . | . . . . . Piercing . | . . . . . Sneak Attacks . | . . . . . Combat Hostiles . | . . . . . Follow-up Attacks . | . . . . . Damage Inflicted 509 | 127 282 . . 100 Guns 452 | 127 282 . . 43 Cannons . | . . . . . Explosions . | . . . . . Melee 57 | . . . . 57 Ramming . | . . . . . Kinetic 116 | 32 77 . . 7 Thermal 36 | . . . . 36 Explosive . | . . . . . Electromagnetic 300 | 95 205 . . . Impact 57 | . . . . 57 Slashing . | . . . . . Piercing . | . . . . . Highest Corruption . | . . . . . Average Corruption . | . . . . . Corruption Purged . | . . . . . Corruption Blocked . | . . . . . Overload Shots . | . . . . . Overflow Damage 21 | . . . . 21 Projectiles . | . . . . . Explosions . | . . . . . Melee 21 | . . . . 21 Knockbacks . | . . . . . Impact . | . . . . . Kinetic . | . . . . . Secondary . | . . . . . Self-Inflicted Damage . | . . . . . Shots . | . . . . . Rammed . | . . . . . Targets Rammed . | . . . . . Kicked . | . . . . . Crushed . | . . . . . Highest Temperature 126 | 40 126 . . 35 Average Temperature 40 | 23 51 . . 18 Received Heat Transfer 66 | . 66 . . . Siege Activations . | . . . . . Martial Activations . | . . . . . Shielding Activations . | . . . . . Robots Disrupted . | . . . . . Combat Hostiles . | . . . . . Robots Corrupted . | . . . . . Combat Hostiles . | . . . . . Parts Fried . | . . . . . Impact Corruptions 1 | . . . . 1 Robots Melted . | . . . . . Combat Hostiles . | . . . . . Parts Melted . | . . . . . Heat Transferred 111 | . . . . 111 Parts Sabotaged . | . . . . . Parts Stolen . | . . . . . Parts Stripped . | . . . . . Power Chain Reactions . | . . . . . Alert | -11 -10 -10 -10 -9 ------- Run | Yrd Mat Min Exi Min Maximum Alert Level . | . . . . . Low Security (%) 100 | 100 100 100 . 100 Level 1 . | . . . . . Level 2 . | . . . . . Level 3 . | . . . . . Level 4 . | . . . . . Level 5 . | . . . . . High Security . | . . . . . Max Security . | . . . . . Peak Influence 90 | 10 90 11 . 8 Initial 11 | . . 11 . . Average 14 | 1 33 1 . . Influence Increases 183 | 20 152 . . 11 Destroy 0b10 Robot/C 120 | . 120 . . . Destroy 0b10 Robot/NC 25 | 20 5 . . . Destroy Leader 20 | . 20 . . . Successful Hack 7 | . 7 . . . Destroy Structure 11 | . . . . 11 Influence Decreases 183 | 20 122 30 . 11 Entered New Map 19 | . . 19 . . Time Decay 153 | 20 122 11 . . Lost Part 9 | . . . . 9 Lost Ally 2 | . . . . 2 Squads Dispatched 1 | . 1 . . . Investigation 1 | . 1 . . . Extermination . | . . . . . Reinforcement . | . . . . . Assault . | . . . . . Garrison . | . . . . . Intercept . | . . . . . Searches Triggered . | . . . . . Construction Impeded . | . . . . . Haulers Reinforced . | . . . . . Active Scanning Responses . | . . . . . Cargo Convoy Interrupts . | . . . . . Stealth | -11 -10 -10 -10 -9 --------- Run | Yrd Mat Min Exi Min Distress Signals 1 | . 1 . . . Communications Jammed . | . . . . . Distress Signals . | . . . . . Times Spotted 13 | . 9 . . 4 Peak Tracking Total 3 | . 3 . . 2 Tactical Retreats . | . . . . . Traps | -11 -10 -10 -10 -9 ------- Run | Yrd Mat Min Exi Min Traps Triggered . | . . . . . Indirectly . | . . . . . Trap Hack Attempts . | . . . . . Triggered . | . . . . . Disarmed . | . . . . . Reprogrammed . | . . . . . Reused . | . . . . . Traps Extracted . | . . . . . Installed . | . . . . . Triggered . | . . . . . Machines | -11 -10 -10 -10 -9 ---------- Run | Yrd Mat Min Exi Min Machines Disabled . | . . . . . Max in Single Turn . | . . . . . Machines Repaired . | . . . . . Machines Dismantled . | . . . . . Machines Sabotaged . | . . . . . Overloaded Fab Kills . | . . . . . Hacking | -11 -10 -10 -10 -9 --------- Run | Yrd Mat Min Exi Min Machines Accessed 5 | . 3 1 1 . Terminals 3 | . 3 . . . Fabricators . | . . . . . Repair Stations . | . . . . . Recycling Units . | . . . . . Scanalyzers . | . . . . . Garrison Access . | . . . . . Total Hacks 7 | . 5 1 1 . Successful 3 | . 1 1 1 . Failed 4 | . 4 . . . Catastrophic 1 | . 1 . . . Database Lockouts . | . . . . . Manual 3 | . 2 . 1 . Terminals 5 | . 5 . . . Fabricators . | . . . . . Repair Stations . | . . . . . Recycling Units . | . . . . . Scanalyzers . | . . . . . Garrison Access . | . . . . . Terminal Hacks 3 | . 1 1 1 . Open Door 1 | . . 1 . . Registered Components 1 | . 1 . . . Proto ID Catalog 1 | . . . 1 . Fabricator Hacks . | . . . . . Repair Station Hacks . | . . . . . Recycling Unit Hacks . | . . . . . Scanalyzer . | . . . . . Garrison Access Hacks . | . . . . . Unauthorized Hacks . | . . . . . Terminals . | . . . . . Fabricators . | . . . . . Repair Stations . | . . . . . Recycling Units . | . . . . . Scanalyzers . | . . . . . Garrison Access . | . . . . . Data Cores Recovered 1 | . 1 . . . Used . | . . . . . Hacking Detections 2 | . 2 . . . Full Trace Events 1 | . 1 . . . Feedback Events . | . . . . . Feedback Blocked . | . . . . . Robot Schematics Acquired . | . . . . . Robots Built . | . . . . . Authchips . | . . . . . Time . | . . . . . Total Robot Build Rating . | . . . . . Part Schematics Acquired . | . . . . . Parts Built . | . . . . . Authchips . | . . . . . Time . | . . . . . Total Part Build Rating . | . . . . . Part Studies Acquired . | . . . . . Parts Repaired . | . . . . . Time . | . . . . . Parts Recycled . | . . . . . Recycled Matter . | . . . . . Retrieved Matter . | . . . . . Retrieved Components . | . . . . . Parts Scanalyzed . | . . . . . Part Schematics Acquired . | . . . . . Parts Damaged . | . . . . . Bothacking | -11 -10 -10 -10 -9 ------------ Run | Yrd Mat Min Exi Min Used RIF Installer . | . . . . . Robots Hacked . | . . . . . Non-combat . | . . . . . Combat . | . . . . . Robot Hacks Applied . | . . . . . Relay Couplers Released . | . . . . . Fabnet Peak Effective % . | . . . . . Robots Rewired . | . . . . . Allies Hacked . | . . . . . Hacks Repelled . | . . . . . Allies | -11 -10 -10 -10 -9 -------- Run | Yrd Mat Min Exi Min Total Allies 1 | . . . . 1 Largest Group 1 | . . . . 1 Highest-Rated Group 34 | . . . . 34 Highest-Rated Ally 34 | . . . . 34 Total Orders . | . . . . . Ally Attacks 7 | . . . . 7 Total Damage 87 | . . . . 87 Kills 1 | . . . . 1 Allies Corrupted . | . . . . . Allies Melted . | . . . . . Field Lobotomies 1 | . . . . 1 Intel | -11 -10 -10 -10 -9 ------- Run | Yrd Mat Min Exi Min Active Infowar (turns) 459 | 51 351 57 . . Terrain 459 | 51 351 57 . . Robot Analysis Total . | . . . . . Derelict Logs Recovered . | . . . . . Drone Launches . | . . . . . Drone Recoveries . | . . . . . Exploration | -11 -10 -10 -10 -9 ------------- Run | Yrd Mat Min Exi Min Turns Passed 1178 | 125 351 116 351 235 Spaces Moved 638 | 57 177 70 219 115 Core 73 | 3 . . . 70 Treads 565 | 54 177 70 219 45 Legs . | . . . . . Wheels . | . . . . . Hover . | . . . . . Flight . | . . . . . Fastest Speed 50 | 50 160 160 160 150 Average Speed 163 | 154 160 160 160 182 Slowest Speed 250 | 160 160 160 160 250 Overloaded Moves . | . . . . . Propulsion Burnouts . | . . . . . Robots Hopped . | . . . . . Potential Cave-ins . | . . . . . Cave-ins Triggered . | . . . . . Exploration Rate (%) 27 | 4 32 15 62 22 Regions Visited 4 Branch Regions 3 Pre-discovered Areas . | . . . . . Known Exits Taken . | . . . . . Unknown Exits Taken 4 | 1 1 1 1 . Scrap Searched 3 | . . 1 . 2 Spaces Dug . | . . . . . Terrain Destroyed . | . . . . . Melee . | . . . . . Projectile . | . . . . . AOE . | . . . . . Terrain Rammed . | . . . . . Walls Destroyed . | . . . . . Machines Disabled . | . . . . . Actions | -11 -10 -10 -10 -9 --------- Run | Yrd Mat Min Exi Min Total 701 | 74 204 76 220 127 Wait . | . . . . . Move 634 | 56 176 69 218 115 Hop . | . . . . . Pick Up 10 | 1 5 3 1 . Fast Attach 9 | 7 . . . 2 Attach 1 | . . . . 1 Detach 1 | . . 1 . . Swap 2 | 1 . . . 1 Drop 4 | . . 3 1 . Fire 38 | 9 23 . . 6 Melee 2 | . . . . 2 Ram . | . . . . . Kick . | . . . . . Crush . | . . . . . Escape Stasis . | . . . . . Rewire . | . . . . . Trap . | . . . . . Miscellaneous . | . . . . . Route ------- -11/Scrapyard -10/Materials -10/Mines (discovered 2 exits: [*Mat] / *Exi) -10/Exiles -9/Mines History --------- Turn | Location | Event 39 | -11/Scrapyard | Discovered new exit (range 15) 126 | -11/Scrapyard | Entered Materials 317 | -10/Materials | Build established: Mutant 364 | -10/Materials | Discovered new exit (range 9) 477 | -10/Materials | Entered Mines 503 | -10/Mines | Discovered new exit (range 10) 527 | -10/Mines | Found the Drone Emporium 536 | -10/Mines | Found Prototype Device 567 | -10/Mines | YI-UF0 nonchalantly dropped a Grenade Launcher on the ground 585 | -10/Mines | Deemed a non-threat by the Exiles lab entrance 586 | -10/Mines | Discovered new exit (range 5) 593 | -10/Mines | Entered Exiles 632 | -10/Exiles | Met 8R-AWN 661 | -10/Exiles | Met EX-HEX 718 | -10/Exiles | Met EX-BIN 741 | -10/Exiles | Aligned with FarCom system 742 | -10/Exiles | Given EX-Vault access code 779 | -10/Exiles | Opened EX-Vault 789 | -10/Exiles | Found Field Lobotomy Kit 824 | -10/Exiles | Warned to stay clear of 0b10 Research branches 846 | -10/Exiles | Exiles lab attacked by MAIN.C 931 | -10/Exiles | Discovered new exit (range 10) 944 | -10/Exiles | Left Exiles lab with Field Lobotomy Kit 944 | -10/Exiles | Entered Mines 945 | -9/Mines | Assembled infested the area 1007 | -9/Mines | Assimilated D-53 Grenadier with FLK Orb 1011 | -9/Mines | Core integrity fell below 50% 1030 | -9/Mines | Core integrity fell below 20% 1058 | -9/Mines | Lost 5 parts (1p2n2w) 1179 | -9/Mines | Destroyed by as-74267 with Assembled Blade Last Messages --------------- 01075_ as-90920 destroyed. 01079_ U-05 Engineer builds a Wall. 01081_ Searching scrap... 01081_ Found Med. Laser. 01081_ Found Shield Generator. 01081_ Found Hrd. Light Armor Plating. 01081_ Found 38 Matter. 01083_ U-05 Engineer builds a Wall. 01084_ Acquired Hrd. Light Armor Plating. 01086_ Acquired 10 matter. 01087_ U-05 Engineer lays Concrete. 01089_ U-05 Engineer builds a Wall. 01089_ K-01 Serf collects debris. 01096_ Acquired Med. Laser. 01097_ The unstable cave ceiling collapses. 01099_ K-01 Serf collects debris. 01103_ U-05 Engineer lays Concrete. 01104_ U-05 Engineer builds a Wall. 01106_ K-01 Serf collects debris. 01171_ Hammer destroyed. Map ----- +----------------------------------------------------+ | ##?????# #??????????????????????????????????????? | | #####?# #??????????????????????????????????????? | | ### #??????????????????????????????????????? | | ##?????????????????????????????????????? | | # ##????????????????????????????????????? | | # #????????????????????????????????????? | | #????????????????????????????????????? | | #????????????????????????????????????? | | # #?????????###????????????????????????? | | ##???????## ##???????????????????????? | | # ##???????# #???????????????????????? | | ## ## ######??## #???????????????????????? | | ### ## # ### #### #????????????????????????? | | # # ## #?????????????????????????? | | ! ##?????????????????????????? | | % % ##??????????????????????????? | | # ############ #???????????????????????????? | | # #?????????# #???????????????????????????? | | ##?????????# #???????????????????????????? | | # #??????????# ####????????????????????????? | | ###### ##?????????# #????????????????????????? | | ###### #?????????#### #????????????????????????? | | # ## #???????# #### #????????????????????????? | | ##???????# ###??????????????????????? | | ##???????###### #??????????????????????? | | % ### #??????###@#??????????????????????? | | #?????????# a ?????????????????????? | | #?????????#### #???????????????????? | | ##??????????????#???????????????????? | | ## #???????????????????????????????????? | | ## ##? #???????????????????????????????????? | | #?###???#???????????????????????????????????? | | # #???????????????????????????????????????????? | | ### ???????????????????????????????????????????? | | ??## ??????????????????????????????????????????? | | ???# ??????????????????????????????????????????? | | ??? ?????????????????????????????????????????? | | ??? #????????????????????????????????????????? | | ??? #????????????????????????????????????????? | | ??? ????????????????????????????????????????? | | ??? ??????????????????????????????????????????? | | ???# ???????????????????????????????????????????? | | ?????????????????????????????????????????????????? | | ?????????????????????????????????????????????????? | | ?????????????????????????????????????????????????? | | ?????????????????????????????????????????????????? | | ?????????????????????????????????????????????????? | | ?????????????????????????????????????????????????? | | ?????????????????????????????????????????????????? | | ?????????????????????????????????????????????????? | +----------------------------------------------------+ Best States ------------- Heat Dissipation 25 Energy Generation 10 Energy Capacity 125 Matter Stores 300 Matter Capacity 300 Sight Range 16 Terrain Scan Range 16 Terrain Scan Density 10 Armor Coverage 150 Evasion (%) 40 Recoil Reduction 2 Item Schematics ----------------- None Robot Schematics ------------------ None Fabricated ------------ Nothing Repaired ---------- Nothing Studied --------- None Alien Tech Used ----------------- None Achievements -------------- None Challenges ------------ None Game ------ Seed SpliceAntimatterShredder Manual? 0 Play Time 00:08:48 Cumulative 62.9 hours Start 2026.02.11 @ 16:09:17 End 2026.02.11 @ 17:33:58 Sessions 1 Manual Loads 0 Difficulty Rogue Special Mode None Game No. 107 Rogue 107 Adventurer 0 Explorer 0 Win Type - Total 0 Types 0/0/0/0/0/0/0/0/0/0 Lore% 34 Gallery% 40 Achievement% 29 Wizard Run 0 Options --------- Layout 1 ASCII 0 Keyboard 1 Movement Arrows Keybinds 0 Fullscreen 1 Font 24/Smallcaps Map View 50x35 Zoom Use 0% Tactical HUD 1 Map Filters NONE Filters NONE Steam 1 RUN: fe496dd0-518a-48a9-98d2-c604d62e41ac